bitfinex-derivatives/quotes_BTCF0:USTF0_20240917
["timestamp","ask_amount","ask_price","bid_price","bid_amount"]
[1726532497992,0.1133209,58336.0,58335.0,0.0024]
[1726532500184,0.1133209,58336.0,58335.0,0.088107]
[1726532500888,0.0276149,58336.0,58335.0,0.088107]
[1726532513401,0.1266149,58336.0,58335.0,0.088107]
[1726532513590,0.2123209,58336.0,58335.0,0.088107]
[1726532513999,0.4123209,58336.0,58335.0,0.088107]
[1726532515405,0.4123209,58336.0,58335.0,0.13936661]
[1726532515902,0.44011425,58336.0,58335.0,0.13936661]
[1726532516401,0.4123209,58336.0,58335.0,0.13936661]
[1726532517803,0.44011433,58336.0,58335.0,0.13936661]
[1726532518101,0.4123209,58336.0,58335.0,0.13936661]
[1726532518801,0.44011414,58336.0,58335.0,0.13936661]
[1726532519200,0.44011414,58336.0,58335.0,0.0024]
[1726532520193,0.44011414,58336.0,58334.0,0.41309961]
[1726532520194,0.085707,58335.0,58334.0,0.00104]
[1726532520404,0.64533505,58335.0,58331.0,0.05125961]
[1726532520593,0.2004,58332.0,58330.0,0.05125961]
[1726532520915,0.08207604,58331.0,58328.0,0.36184]
[1726532521104,0.085716,58329.0,58328.0,0.3608]
[1726532521294,0.11391216,58329.0,58328.0,0.3608]
[1726532521494,0.086116,58329.0,58328.0,0.3608]
[1726532521897,0.085717,58328.0,58327.0,0.00257151]
[1726532522096,0.286117,58328.0,58327.0,0.00257151]
[1726532523702,0.646917,58328.0,58327.0,0.00257151]
[1726532524206,0.646917,58328.0,58327.0,0.00357151]
[1726532524207,0.656917,58328.0,58327.0,0.00357151]
[1726532524596,0.656917,58328.0,58327.0,0.001]
[1726532524800,0.68471537,58328.0,58327.0,0.001]
[1726532524998,0.69371537,58328.0,58327.0,0.002]
[1726532525801,1.80803537,58328.0,58327.0,0.002]
[1726532525994,0.085726,58322.0,58321.0,0.3648]
[1726532526193,0.286126,58322.0,58321.0,0.3608]
[1726532526408,0.2004,58322.0,58318.0,0.05125961]
[1726532526608,0.086132,58319.0,58317.0,0.05383143]
[1726532526807,0.286132,58318.0,58317.0,0.05383143]
[1726532527008,0.285732,58318.0,58317.0,0.05383143]
[1726532527405,0.285732,58318.0,58317.0,0.00257182]
[1726532528806,0.285732,58318.0,58317.0,0.00357182]
[1726532529808,0.285732,58318.0,58317.0,0.14056543]
[1726532529809,0.085732,58318.0,58317.0,0.14056543]
[1726532530303,0.085732,58318.0,58317.0,0.08930582]
[1726532533811,0.00845478,58319.0,58317.0,0.08930582]
[1726532534006,0.00845478,58319.0,58318.0,0.0004]
[1726532534195,0.00845478,58319.0,58318.0,0.086132]
[1726532535313,0.0004,58319.0,58318.0,0.646032]
[1726532535609,0.0004,58319.0,58318.0,0.742432]
[1726532535806,0.0004,58319.0,58318.0,0.228032]
[1726532536006,0.0014,58319.0,58318.0,0.228032]
[1726532537006,0.1314,58319.0,58318.0,0.228032]
[1726532538015,0.0014,58319.0,58318.0,0.228032]
[1726532547212,0.0014,58319.0,58318.0,0.27929161]
[1726532548423,0.0014,58319.0,58318.0,0.228032]
[1726532549320,0.0014,58319.0,58318.0,0.29637891]
[1726532550013,0.0014,58319.0,58318.0,0.228032]
[1726532550324,0.0014,58319.0,58318.0,0.29637891]
[1726532550514,0.2014,58319.0,58318.0,0.086132]
[1726532552219,0.287131,58319.0,58318.0,0.086132]
[1726532552415,0.287131,58319.0,58318.0,0.0004]
[1726532552817,0.171464,58318.0,58317.0,0.05138293]
[1726532553021,0.085735,58316.0,58315.0,0.00257201]
[1726532553219,0.085741,58312.0,58311.0,0.004]
[1726532553525,0.38860717,58312.0,58306.0,0.004]
[1726532553717,0.38860717,58312.0,58305.0,0.07091931]
[1726532553718,0.0004,58307.0,58305.0,0.07091931]
[1726532554218,0.0004,58307.0,58305.0,0.15666931]
[1726532554526,0.078147,58308.0,58305.0,0.0883224]
[1726532554718,0.078147,58308.0,58307.0,0.0004]
[1726532556021,0.08618424,58308.0,58307.0,0.0064]
[1726532557827,0.08718424,58308.0,58307.0,0.0134]
[1726532560923,0.17293224,58308.0,58307.0,0.0134]
[1726532564019,1.28745224,58308.0,58307.0,0.0134]
[1726532564535,0.08718424,58308.0,58307.0,0.0134]
[1726532564829,0.28518424,58308.0,58307.0,0.0074]
[1726532571239,0.64598424,58308.0,58307.0,0.0074]
[1726532572734,0.53173224,58308.0,58307.0,0.0074]
[1726532572935,0.73173224,58308.0,58307.0,0.0074]
[1726532575144,0.64598424,58308.0,58307.0,0.0074]
[1726532575944,0.64598424,58308.0,58307.0,0.01121]
[1726532576131,0.44598424,58308.0,58307.0,0.01121]
[1726532582454,0.4737932,58308.0,58307.0,0.01121]
[1726532583845,0.4737932,58308.0,58307.0,0.096958]
[1726532584147,0.3956462,58308.0,58307.0,0.096958]
[1726532584650,0.36783724,58308.0,58307.0,0.096958]
[1726532584846,0.36783724,58308.0,58307.0,0.093958]
[1726532585052,0.36883724,58308.0,58307.0,0.093958]
[1726532585239,0.36883724,58308.0,58307.0,0.089958]
[1726532585443,0.36983724,58308.0,58307.0,0.089958]
[1726532587046,0.36883724,58308.0,58307.0,0.089958]
[1726532587253,0.38283724,58308.0,58307.0,0.090958]
[1726532588754,0.02203724,58308.0,58307.0,0.090958]
[1726532589852,0.03503724,58308.0,58307.0,0.091958]
[1726532592448,0.06284524,58308.0,58307.0,0.091958]
[1726532594156,0.14859224,58308.0,58307.0,0.091958]
[1726532594747,0.06284524,58308.0,58307.0,0.091958]
[1726532594952,0.06284524,58308.0,58307.0,0.291958]
[1726532595449,0.03503724,58308.0,58307.0,0.291958]
[1726532595855,0.06284528,58308.0,58307.0,0.291958]
[1726532596255,0.06284536,58308.0,58307.0,0.291958]
[1726532597255,0.06284536,58308.0,58307.0,0.091958]
[1726532598348,0.03503724,58308.0,58307.0,0.091958]
[1726532600450,0.06284534,58308.0,58307.0,0.091958]
[1726532601046,0.06284535,58308.0,58307.0,0.091958]
[1726532602055,0.14859235,58308.0,58307.0,0.00621]
[1726532603055,0.14859235,58308.0,58307.0,0.0024]
[1726532605357,0.25145416,58308.0,58307.0,0.0024]
[1726532606062,0.25148408,58308.0,58307.0,0.0024]
[1726532606262,0.14859235,58308.0,58307.0,0.0024]
[1726532606467,0.25148355,58308.0,58307.0,0.0024]
[1726532608474,0.14859235,58308.0,58307.0,0.0024]
[1726532608868,0.40056156,58308.0,58299.0,0.004]
[1726532609170,0.0004,58300.0,58299.0,0.004]
[1726532609471,0.08576,58299.0,58298.0,0.3608]
[1726532609667,0.08616,58299.0,58298.0,0.3608]
[1726532611457,0.09116,58299.0,58298.0,0.3608]
[1726532611864,0.0054,58299.0,58298.0,0.446561]
[1726532612071,0.0104,58299.0,58298.0,0.51490791]
[1726532613975,0.01771266,58299.0,58298.0,0.51490791]
[1726532615674,0.00257272,58306.0,58298.0,1.75056728]
[1726532615872,0.00960807,58306.0,58305.0,0.286151]
[1726532616769,0.00257272,58306.0,58305.0,1.400671]
[1726532616973,0.004,58314.0,58311.0,0.085742]
[1726532617167,0.013,58306.0,58305.0,0.092271]
[1726532617472,0.004,58314.0,58313.0,0.086139]
[1726532617776,0.0025724,58315.0,58314.0,0.085738]
[1726532618073,0.00983767,58315.0,58314.0,0.286138]
[1726532618269,0.00983767,58315.0,58314.0,0.285738]
[1726532619272,0.01083767,58315.0,58314.0,0.286738]
[1726532619875,0.01083767,58315.0,58314.0,0.287738]
[1726532620079,0.01083767,58315.0,58314.0,0.002]
[1726532620371,0.29657367,58315.0,58314.0,0.002]
[1726532621868,0.21083767,58315.0,58314.0,0.002]
[1726532623079,0.01083767,58315.0,58314.0,0.002]
[1726532623475,0.01083767,58315.0,58314.0,0.087738]
[1726532626876,0.01383767,58315.0,58314.0,0.087738]
[1726532627475,0.02683767,58315.0,58314.0,0.087738]
[1726532635785,0.03183767,58315.0,58314.0,0.087738]
[1726532640188,0.12903767,58315.0,58314.0,0.087738]
[1726532641587,0.21477367,58315.0,58314.0,0.087738]
[1726532643989,0.21477367,58315.0,58314.0,0.002]
[1726532644188,0.24257823,58315.0,58314.0,0.002]
[1726532644386,0.44257823,58315.0,58314.0,0.002]
[1726532644589,0.54541365,58315.0,58314.0,0.002]
[1726532644886,0.085747,58308.0,58307.0,0.00657252]
[1726532645090,0.286147,58308.0,58307.0,0.00257252]
[1726532646001,0.099147,58308.0,58307.0,0.00357252]
[1726532646300,0.299147,58308.0,58307.0,0.00357252]
[1726532646798,0.312147,58308.0,58307.0,0.00457252]
[1726532647102,0.33995563,58308.0,58307.0,0.00457252]
[1726532649193,0.42570263,58308.0,58307.0,0.00457252]
[1726532649390,0.43288899,58308.0,58307.0,0.00457252]
[1726532652099,0.79368899,58308.0,58307.0,0.00457252]
[1726532654103,0.59368899,58308.0,58307.0,0.00457252]
[1726532654307,0.79368899,58308.0,58307.0,0.00457252]
[1726532655600,0.085757,58301.0,58297.0,0.00657303]
[1726532655802,0.085761,58299.0,58297.0,0.00257303]
[1726532657103,0.112761,58299.0,58297.0,0.00457303]
[1726532657303,0.085761,58298.0,58297.0,0.00457303]
[1726532659401,0.085761,58298.0,58297.0,0.00357303]
[1726532659606,0.113761,58298.0,58297.0,0.00257303]
[1726532660014,0.243761,58298.0,58297.0,0.00257303]
[1726532662502,0.229761,58298.0,58297.0,0.00257303]
[1726532662702,0.243761,58298.0,58297.0,0.00257303]
[1726532668605,0.329522,58298.0,58297.0,0.00257303]
[1726532668815,0.604561,58298.0,58297.0,0.00257303]
[1726532669907,0.590561,58298.0,58297.0,0.00257303]
[1726532670110,0.604561,58298.0,58297.0,0.00257303]
[1726532671410,0.08577,58292.0,58291.0,0.0456]
[1726532671616,0.13,58292.0,58286.0,0.184278]
[1726532671809,0.1304,58288.0,58286.0,0.184278]
[1726532673020,0.1424,58288.0,58287.0,0.4121141]
[1726532673506,0.1544,58288.0,58287.0,0.4978921]
[1726532674308,0.1544,58288.0,58287.0,0.446578]
[1726532676108,0.1544,58288.0,58287.0,0.49791511]
[1726532676308,0.1544,58288.0,58287.0,0.446578]
[1726532678613,0.16146235,58288.0,58287.0,0.446578]
[1726532679612,0.16146235,58288.0,58287.0,0.49792756]
[1726532682515,0.16146235,58288.0,58287.0,0.446578]
[1726532684121,0.03146235,58288.0,58287.0,0.49792756]
[1726532684729,0.03146235,58288.0,58287.0,0.446578]
[1726532685129,0.01946235,58288.0,58287.0,0.49792756]
[1726532685333,0.03146235,58288.0,58287.0,0.49792756]
[1726532685527,0.01946235,58288.0,58287.0,0.49792756]
[1726532685828,0.03246235,58288.0,58287.0,0.49792756]
[1726532686035,0.03446235,58288.0,58287.0,0.49792756]
[1726532686630,0.02146235,58288.0,58287.0,0.49792756]
[1726532686834,0.03546235,58288.0,58287.0,0.49792756]
[1726532688136,0.12123835,58288.0,58287.0,0.085778]
[1726532689726,0.03546235,58288.0,58287.0,0.085778]
[1726532696941,0.16546235,58288.0,58287.0,0.085778]
[1726532697935,0.16546235,58288.0,58287.0,0.13719965]
[1726532698236,0.16546235,58288.0,58287.0,0.085778]
[1726532699744,0.16546235,58288.0,58287.0,0.089588]
[1726532703141,0.03546235,58288.0,58287.0,0.089588]
[1726532703339,0.03546235,58288.0,58287.0,0.28798889]
[1726532703551,0.03546235,58288.0,58287.0,0.219588]
[1726532705646,0.03546235,58288.0,58287.0,0.28814935]
[1726532706447,0.03546235,58288.0,58287.0,0.219588]
[1726532706837,0.03546235,58288.0,58287.0,0.28815002]
[1726532707547,0.03546235,58288.0,58287.0,0.28815103]
[1726532709146,0.03546235,58288.0,58287.0,0.219588]
[1726532709342,0.03546235,58288.0,58287.0,0.28815418]
[1726532709739,0.03546235,58288.0,58287.0,0.219588]
[1726532710246,0.03546235,58288.0,58287.0,0.089588]
[1726532710435,0.03546235,58288.0,58287.0,0.15815307]
[1726532717755,0.03546235,58288.0,58287.0,0.089588]
[1726532722758,0.25123835,58288.0,58287.0,0.05525668]
[1726532723068,0.25123835,58288.0,58287.0,0.00381]
[1726532723069,0.74269134,58288.0,58287.0,0.00381]
[1726532723253,0.63985519,58288.0,58287.0,0.00381]
[1726532723452,0.74279492,58288.0,58287.0,0.00381]
[1726532723855,0.085782,58284.0,58283.0,0.05402005]
[1726532724162,0.31912576,58284.0,58283.0,0.00257337]
[1726532724352,0.24399884,58284.0,58283.0,0.00257337]
[1726532724547,0.3469426,58284.0,58283.0,0.00257337]
[1726532725161,0.3569426,58284.0,58283.0,0.00257337]
[1726532725360,0.25399884,58284.0,58283.0,0.00257337]
[1726532725664,0.26399884,58284.0,58283.0,0.00257337]
[1726532726765,0.04821684,58284.0,58283.0,0.00257337]
[1726532726963,0.1504,58284.0,58283.0,0.08835737]
[1726532727273,0.0204,58284.0,58283.0,0.08835737]
[1726532727656,0.0204,58284.0,58283.0,0.18493068]
[1726532727954,0.0204,58284.0,58283.0,0.38493068]
[1726532728362,0.0204,58284.0,58283.0,0.333484]
[1726532728560,0.0204,58284.0,58283.0,0.133484]
[1726532728757,0.0204,58284.0,58283.0,0.333484]
[1726532728958,0.0204,58284.0,58283.0,0.41898512]
[1726532729472,0.0204,58284.0,58283.0,0.333484]
[1726532729764,0.0134,58284.0,58283.0,0.333484]
[1726532730173,0.0124,58284.0,58283.0,0.133484]
[1726532730461,0.0054,58284.0,58283.0,0.133484]
[1726532730662,0.0114,58284.0,58283.0,0.133484]
[1726532735463,0.0114,58284.0,58283.0,0.085784]
[1726532736069,0.0114,58284.0,58283.0,0.15424571]
[1726532736863,0.0114,58284.0,58283.0,0.085784]
[1726532737867,0.0054,58284.0,58283.0,0.15424571]
[1726532738063,0.0144,58284.0,58283.0,0.15424571]
[1726532738372,0.0184,58284.0,58283.0,0.15424571]
[1726532738769,0.0184,58284.0,58283.0,0.085784]
[1726532739466,0.0094,58284.0,58283.0,0.085784]
[1726532739667,0.0184,58284.0,58283.0,0.085784]
[1726532740069,0.2184,58284.0,58283.0,0.085784]
[1726532741177,0.2184,58284.0,58283.0,0.089594]
[1726532743070,0.2184,58284.0,58283.0,0.14095366]
[1726532743273,0.2184,58284.0,58283.0,0.089594]
[1726532746881,0.304182,58284.0,58283.0,0.089594]
[1726532748468,0.304182,58284.0,58283.0,0.00381]
[1726532749980,0.234182,58284.0,58283.0,0.00381]
[1726532757882,0.104182,58284.0,58283.0,0.00381]
[1726532758081,0.234182,58284.0,58283.0,0.00381]
[1726532760290,0.594982,58284.0,58283.0,0.00381]
[1726532761384,0.62280255,58284.0,58283.0,0.00381]
[1726532763884,0.085786,58281.0,58280.0,0.00257357]
[1726532764094,0.02782133,58281.0,58276.0,0.00257395]
[1726532764397,0.215792,58277.0,58276.0,0.00257395]
[1726532764611,0.24361333,58277.0,58276.0,0.00257395]
[1726532765189,0.085792,58277.0,58276.0,0.00257395]
[1726532765401,0.00257396,58280.0,58279.0,0.085789]
[1726532765592,0.00257396,58280.0,58279.0,0.446989]
[1726532765799,0.00257396,58280.0,58279.0,0.086189]
[1726532765995,0.01013348,58280.0,58279.0,0.086189]
[1726532766195,0.00257396,58280.0,58279.0,0.229089]
[1726532767502,0.00257396,58280.0,58279.0,0.28045176]
[1726532767690,0.00657396,58280.0,58279.0,0.28045176]
[1726532767890,0.01157396,58280.0,58279.0,0.28045176]
[1726532768397,0.14157396,58280.0,58279.0,0.28045176]
[1726532771888,0.14157396,58280.0,58279.0,0.133089]
[1726532781895,0.14157396,58280.0,58279.0,0.136899]
[1726532785610,0.01157396,58280.0,58279.0,0.136899]
[1726532785814,0.14157396,58280.0,58279.0,0.136899]
[1726532786004,0.14157396,58280.0,58279.0,0.497699]
[1726532786401,0.14157396,58280.0,58279.0,0.54906176]
[1726532786711,0.14157396,58280.0,58279.0,0.497699]
[1726532786905,0.14157396,58280.0,58279.0,0.54906176]
[1726532787210,0.14157396,58280.0,58279.0,0.136899]
[1726532788415,0.14157396,58280.0,58279.0,0.54906176]
[1726532788913,0.14157396,58280.0,58279.0,0.136899]
[1726532795408,0.14157396,58280.0,58279.0,0.18826176]
[1726532796115,0.14157396,58280.0,58279.0,0.136899]
[1726532796315,0.14157396,58280.0,58279.0,0.089999]
[1726532796518,0.14157396,58280.0,58279.0,0.14136176]
[1726532796718,0.14157396,58280.0,58279.0,0.089999]
[1726532797512,0.14157396,58280.0,58279.0,0.14136176]
[1726532797710,0.14157396,58280.0,58279.0,0.089999]
[1726532798111,0.22736196,58280.0,58279.0,0.089999]
[1726532801423,0.25518271,58280.0,58279.0,0.089999]
[1726532803120,0.22736196,58280.0,58279.0,0.089999]
[1726532807623,0.25518267,58280.0,58279.0,0.089999]
[1726532808219,0.16939467,58280.0,58279.0,0.089999]
[1726532808420,0.03939467,58280.0,58279.0,0.089999]
[1726532808628,0.01157396,58280.0,58279.0,0.089999]
[1726532808832,0.01157396,58280.0,58279.0,0.15465071]
[1726532813332,0.01157396,58280.0,58279.0,0.51545071]
[1726532813530,0.01157396,58280.0,58279.0,0.086189]
[1726532814535,0.01157396,58280.0,58279.0,0.15476656]
[1726532816537,0.01157396,58280.0,58279.0,0.086189]
[1726532821929,0.01157396,58280.0,58279.0,0.13765758]
[1726532822241,0.01157396,58280.0,58279.0,0.086189]
[1726532823138,0.01157396,58280.0,58279.0,0.089999]
[1726532833441,0.01157396,58280.0,58279.0,0.14148075]
[1726532833630,0.01157396,58280.0,58279.0,0.089999]
[1726532834847,0.01157396,58280.0,58279.0,0.14148143]
[1726532835442,0.01157396,58280.0,58279.0,0.089999]
[1726532836749,0.03939421,58280.0,58279.0,0.089999]
[1726532837152,0.01157396,58280.0,58279.0,0.089999]
[1726532837747,0.03939421,58280.0,58279.0,0.089999]
[1726532837947,0.03939421,58280.0,58279.0,0.14148041]
[1726532838148,0.03939421,58280.0,58279.0,0.089999]
[1726532838541,0.03939421,58280.0,58279.0,0.14148041]
[1726532838748,0.03939421,58280.0,58279.0,0.089999]
[1726532839046,0.03939421,58280.0,58279.0,0.14148041]
[1726532840058,0.03939421,58280.0,58279.0,0.089999]
[1726532840938,0.03939421,58280.0,58279.0,0.14148041]
[1726532842541,0.12518221,58280.0,58279.0,0.14148958]
[1726532842948,0.12518255,58280.0,58279.0,0.14148985]
[1726532843449,0.09736196,58280.0,58279.0,0.089999]
[1726532843846,0.12518219,58280.0,58279.0,0.089999]
[1726532844448,0.12518256,58280.0,58279.0,0.089999]
[1726532845348,0.12518256,58280.0,58279.0,0.14149523]
[1726532845743,0.12518256,58280.0,58279.0,0.089999]
[1726532846042,0.12518256,58280.0,58279.0,0.0557102]
[1726532847150,0.12518256,58280.0,58279.0,0.00421]
[1726532849549,0.12518256,58280.0,58279.0,0.0004]
[1726532850363,0.48598256,58280.0,58279.0,0.0004]
[1726532851861,0.12518256,58280.0,58279.0,0.0004]
[1726532852050,0.48598256,58280.0,58279.0,0.0004]
[1726532853852,0.03939456,58280.0,58279.0,0.086189]
[1726532854053,0.03939431,58280.0,58279.0,0.086189]
[1726532854267,0.16939431,58280.0,58279.0,0.13767843]
[1726532854859,0.16939441,58280.0,58279.0,0.13767847]
[1726532855254,0.14157396,58280.0,58279.0,0.086189]
[1726532855962,0.1693946,58280.0,58279.0,0.13767894]
[1726532856955,0.14157396,58280.0,58279.0,0.086189]
[1726532857256,0.16939388,58280.0,58279.0,0.13767773]
[1726532857459,0.03681992,58280.0,58279.0,0.13767773]
[1726532857655,0.009,58280.0,58279.0,0.086189]
[1726532858163,0.009,58280.0,58279.0,0.133789]
[1726532860265,0.009,58280.0,58279.0,0.182389]
[1726532860462,0.009,58280.0,58279.0,0.25096656]
[1726532860668,0.139,58280.0,58279.0,0.25096656]
[1726532861561,0.139,58280.0,58279.0,0.182389]
[1726532861766,0.139,58280.0,58279.0,0.25096656]
[1726532862164,0.139,58280.0,58279.0,0.182389]
[1726532862863,0.009,58280.0,58279.0,0.182389]
[1726532863070,0.139,58280.0,58279.0,0.182389]
[1726532864060,0.139,58280.0,58279.0,0.186199]
[1726532870172,0.139,58280.0,58279.0,0.25477656]
[1726532870570,0.139,58280.0,58279.0,0.186199]
[1726532870864,0.139,58280.0,58279.0,0.25477656]
[1726532871076,0.139,58280.0,58279.0,0.186199]
[1726532871281,0.139,58280.0,58279.0,0.25477656]
[1726532871472,0.139,58280.0,58279.0,0.186199]
[1726532874282,0.224788,58280.0,58279.0,0.00421]
[1726532874471,0.21710969,58280.0,58279.0,0.00421]
[1726532874669,0.53584145,58280.0,58279.0,0.00421]
[1726532874882,0.085792,58277.0,58276.0,0.00257395]
[1726532875067,0.13,58275.0,58271.0,0.05147033]
[1726532875272,0.4912,58272.0,58270.0,0.05147033]
[1726532875576,0.4912,58272.0,58268.0,0.00257395]
[1726532875577,0.085803,58270.0,58268.0,0.05404428]
[1726532875879,0.1304,58269.0,58268.0,0.05404428]
[1726532876472,0.1304,58269.0,58268.0,0.00257395]
[1726532877076,0.1294,58269.0,58268.0,0.00257395]
[1726532877879,0.1304,58269.0,58268.0,0.00357395]
[1726532879169,0.1314,58269.0,58268.0,0.00357395]
[1726532880180,0.217204,58269.0,58268.0,0.00357395]
[1726532887182,0.310104,58269.0,58268.0,0.00357395]
[1726532888581,0.085819,58259.0,58258.0,0.0086]
[1726532888776,0.085819,58259.0,58248.0,0.085834]
[1726532888777,0.4912,58259.0,58248.0,0.085834]
[1726532888975,0.1304,58249.0,58248.0,0.085834]
[1726532889182,0.13,58249.0,58248.0,0.085834]
[1726532890381,0.131,58249.0,58248.0,0.085834]
[1726532892291,0.132,58249.0,58248.0,0.085834]
[1726532892685,0.13949422,58249.0,58248.0,0.085834]
[1726532896201,0.00949422,58249.0,58248.0,0.085834]
[1726532896589,0.002,58249.0,58248.0,0.085834]
[1726532899687,0.002,58249.0,58246.0,0.3528]
[1726532899894,0.002,58249.0,58242.0,0.0272]
[1726532899895,0.171684,58243.0,58242.0,0.0272]
[1726532900190,0.302084,58243.0,58242.0,0.0272]
[1726532900590,0.301684,58243.0,58242.0,0.0272]
[1726532902500,0.302684,58243.0,58242.0,0.0272]
[1726532902793,0.303684,58243.0,58242.0,0.0272]
[1726532904596,0.085851,58237.0,58236.0,0.0452]
[1726532904797,0.216651,58237.0,58236.0,0.0452]
[1726532905186,0.216651,58237.0,58233.0,0.004]
[1726532905187,0.1308,58237.0,58233.0,0.004]
[1726532905385,0.1308,58237.0,58219.0,0.0046]
[1726532905386,0.085862,58230.0,58229.0,0.004]
[1726532905698,1.11524,58227.0,58215.0,0.004]
[1726532905894,0.4916,58216.0,58211.0,0.4063]
[1726532906197,0.13,58213.0,58211.0,0.4063]
[1726532907288,0.13,58213.0,58211.0,0.0455]
[1726532907289,0.085888,58212.0,58211.0,0.0455]
[1726532907596,0.085894,58208.0,58207.0,0.00257698]
[1726532907800,0.085894,58208.0,58195.0,0.004]
[1726532907801,0.085904,58202.0,58195.0,0.004]
[1726532908001,0.085904,58202.0,58192.0,0.090517]
[1726532908002,0.2008,58201.0,58192.0,0.085917]
[1726532908195,0.0008,58193.0,58191.0,0.36184]
[1726532908392,0.3608,58203.0,58183.0,0.00257807]
[1726532908393,0.5616,58192.0,58183.0,0.00257807]
[1726532908599,0.2008,58184.0,58183.0,0.00257807]
[1726532908796,0.2,58184.0,58183.0,0.00257807]
[1726532909803,0.202,58184.0,58183.0,0.00257807]
[1726532910797,0.3608,58185.0,58183.0,0.00257807]
[1726532910991,0.00751364,58197.0,58191.0,0.085919]
[1726532911199,0.3616,58208.0,58193.0,0.5608]
[1726532911408,0.20257756,58205.0,58200.0,0.085905]
[1726532912600,0.21006059,58205.0,58200.0,0.085905]
[1726532912804,0.21006059,58205.0,58200.0,0.086905]
[1726532913103,0.21206059,58205.0,58200.0,0.086905]
[1726532913414,0.2,58201.0,58200.0,0.086905]
[1726532914808,0.201,58201.0,58200.0,0.088905]
[1726532915504,0.202,58201.0,58200.0,0.089905]
[1726532919523,0.002,58201.0,58200.0,0.089905]
[1726532920905,0.002,58201.0,58200.0,0.289905]
[1726532922408,0.002,58201.0,58200.0,0.089905]
[1726532922810,0.0048,58208.0,58204.0,0.0859]
[1726532923017,0.0048,58208.0,58207.0,0.085896]
[1726532923018,0.0008,58208.0,58207.0,0.085896]
[1726532923616,0.00819621,58208.0,58207.0,0.085896]
[1726532924820,0.00919621,58208.0,58207.0,0.085896]
[1726532936906,0.0018,58208.0,58207.0,0.285896]
[1726532937118,0.004,58215.0,58214.0,0.085885]
[1726532937309,0.00257694,58216.0,58215.0,0.171768]
[1726532937618,0.00257694,58216.0,58215.0,0.371768]
[1726532938119,0.004,58222.0,58221.0,0.085875]
[1726532938313,0.00657613,58229.0,58228.0,0.085865]
[1726532938509,0.00257613,58229.0,58228.0,0.285865]
[1726532939717,0.0101611,58229.0,58228.0,0.285865]
[1726532939922,0.00257613,58229.0,58228.0,0.285865]
[1726532940220,0.00757613,58229.0,58228.0,0.285865]
[1726532940914,0.01357613,58229.0,58228.0,0.285865]
[1726532945118,0.01357613,58229.0,58228.0,0.089675]
[1726532972837,0.01357613,58229.0,58228.0,0.085865]
[1726532978246,0.085865,58228.0,58227.0,0.06835648]
[1726532978448,0.086265,58228.0,58227.0,0.06872976]
[1726532978640,0.085867,58226.0,58225.0,0.07130588]
[1726532978840,0.085867,58226.0,58225.0,0.00257612]
[1726532979041,0.086267,58226.0,58225.0,0.00257612]
[1726532980046,0.286267,58226.0,58225.0,0.00257612]
[1726532980242,0.288267,58226.0,58225.0,0.00257612]
[1726532981037,0.288267,58226.0,58225.0,0.08844512]
[1726532981038,0.0024,58226.0,58225.0,0.08844512]
[1726532981250,0.0054,58226.0,58225.0,0.08844512]
[1726532981743,0.0054,58226.0,58225.0,0.18714512]
[1726532981938,0.01310079,58226.0,58225.0,0.18714512]
[1726532982135,0.0054,58226.0,58225.0,0.18714512]
[1726532984859,0.01328295,58226.0,58225.0,0.18714512]
[1726532985048,0.3662,58226.0,58225.0,0.18714512]
[1726532985646,0.0054,58226.0,58225.0,0.18714512]
[1726532985843,0.0054,58226.0,58225.0,0.54794512]
[1726532986442,0.0054,58226.0,58225.0,0.63344624]
[1726532986749,0.0054,58226.0,58225.0,0.65494567]
[1726532987946,0.0054,58226.0,58225.0,0.54794512]
[1726532988255,0.0054,58226.0,58225.0,0.74074755]
[1726532990755,0.0054,58226.0,58225.0,0.82661655]
[1726532992152,0.0054,58226.0,58225.0,0.71966177]
[1726532993553,0.0054,58226.0,58225.0,0.63381412]
[1726532993771,0.0054,58226.0,58225.0,0.71966177]
[1726532994151,1e-06,58226.0,58225.0,0.71968312]
[1726532994455,0.004,58234.0,58233.0,0.171714]
[1726532994655,0.00657583,58237.0,58236.0,0.085853]
[1726532994656,0.00257583,58237.0,58236.0,0.085853]
[1726532994846,0.00257583,58237.0,58236.0,0.15449771]
[1726532995046,0.00257583,58237.0,58236.0,0.086253]
[1726532995252,0.00257583,58237.0,58236.0,0.085853]
[1726532995651,0.004,58244.0,58243.0,0.085842]
[1726532995861,0.02783899,58244.0,58243.0,0.0004]
[1726532996261,0.18848648,58247.0,58243.0,0.0004]
[1726532996567,0.02783879,58246.0,58236.0,0.004]
[1726532996760,0.02783879,58246.0,58236.0,0.089853]
[1726532996761,0.0004,58237.0,58236.0,0.089853]
[1726532997062,0.0004,58237.0,58236.0,0.085853]
[1726532997558,0.0004,58237.0,58236.0,0.131553]
[1726532998258,0.0144,58237.0,58236.0,0.132553]
[1726532999562,0.0284,58237.0,58236.0,0.132553]
[1726533001962,0.0284,58237.0,58236.0,0.218406]
[1726533002467,0.004,58244.0,58243.0,0.171684]
[1726533002655,0.00257524,58249.0,58243.0,0.20297514]
[1726533002856,0.00257524,58249.0,58248.0,0.2004]
[1726533003065,0.01034309,58249.0,58248.0,0.285835]
[1726533003363,0.00257524,58249.0,58248.0,0.085835]
[1726533003961,0.00257524,58249.0,58246.0,0.095]
[1726533003962,0.27985985,58249.0,58244.0,0.048]
[1726533004158,0.0004,58245.0,58244.0,0.133841]
[1726533004362,0.27768461,58245.0,58244.0,0.133841]
[1726533005065,0.27768461,58245.0,58241.0,0.0077539]
[1726533005361,0.0004,58242.0,58241.0,0.085845]
[1726533005567,0.27768461,58242.0,58241.0,0.085845]
[1726533006568,0.49964099,58242.0,58241.0,0.085845]
[1726533007067,0.49964099,58242.0,58241.0,0.092845]
[1726533007658,0.27768461,58242.0,58241.0,0.092845]
[1726533007859,0.63848461,58242.0,58241.0,0.092845]
[1726533008066,1.1462266,58242.0,58241.0,0.007]
[1726533008256,0.08585,58238.0,58237.0,0.00257514]
[1726533008456,0.56053461,58238.0,58237.0,0.00257514]
[1726533009863,0.56053461,58238.0,58237.0,0.00357514]
[1726533009864,0.56953461,58238.0,58237.0,0.00357514]